bitfinex-derivatives/quotes_BTCF0:USTF0_20220102
["timestamp","ask_amount","ask_price","bid_price","bid_amount"]
[1641113861214,0.14033567,47206.0,47201.0,0.52738627]
[1641113861418,0.31633567,47206.0,47203.0,0.18]
[1641113861612,0.31633567,47206.0,47201.0,0.33933293]
[1641113861813,0.31633567,47206.0,47202.0,0.008053]
[1641113862214,0.31633567,47206.0,47202.0,0.25889593]
[1641113862718,0.14033567,47206.0,47202.0,0.25889593]
[1641113863117,0.14033567,47206.0,47202.0,0.25084293]
[1641113863324,0.31433567,47206.0,47202.0,0.25084293]
[1641113863719,0.31433567,47206.0,47205.0,0.82541893]
[1641113864120,0.31433567,47206.0,47205.0,0.58879049]
[1641113864618,0.14033567,47206.0,47205.0,0.58879049]
[1641113864919,0.14033567,47206.0,47205.0,0.83963342]
[1641113865319,0.30533567,47206.0,47205.0,0.83963342]
[1641113866522,0.30533567,47206.0,47204.0,0.58879049]
[1641113867228,0.14033567,47206.0,47204.0,0.82615047]
[1641113867428,0.32433567,47206.0,47204.0,0.82615047]
[1641113868126,0.32433567,47206.0,47205.0,0.58879049]
[1641113868725,0.14033567,47206.0,47205.0,0.58879049]
[1641113869326,0.32533567,47206.0,47205.0,0.58879049]
[1641113870728,0.14033567,47206.0,47205.0,0.58879049]
[1641113871029,0.14033567,47206.0,47204.0,1.06277891]
[1641113871244,0.14033567,47206.0,47205.0,0.23735998]
[1641113871445,0.32533567,47206.0,47205.0,0.23735998]
[1641113872747,0.14033567,47206.0,47205.0,0.23735998]
[1641113873447,0.32533567,47206.0,47205.0,0.23735998]
[1641113874749,0.14033567,47206.0,47205.0,0.23735998]
[1641113875250,0.14033567,47206.0,47205.0,1.06277891]
[1641113875449,0.32433567,47206.0,47205.0,1.06277891]
[1641113876750,0.14033567,47206.0,47205.0,1.06277891]
[1641113876951,0.14033567,47206.0,47205.0,0.23735998]
[1641113877552,0.32133567,47206.0,47205.0,0.23735998]
[1641113877953,0.32133567,47206.0,47202.0,0.02118223]
[1641113877954,0.32133567,47206.0,47203.0,0.23735998]
[1641113878854,0.14033567,47206.0,47203.0,0.23735998]
[1641113879455,0.31933567,47206.0,47203.0,0.23735998]
[1641113879954,0.31933567,47206.0,47201.0,1.52724835]
[1641113880255,0.31933567,47206.0,47202.0,0.18805153]
[1641113880858,0.14033567,47206.0,47202.0,0.18805153]
[1641113881057,0.14033567,47206.0,47203.0,0.00805153]
[1641113881459,0.31833567,47206.0,47203.0,0.24541151]
[1641113881658,0.31833567,47206.0,47203.0,0.23735998]
[1641113882460,0.31833567,47206.0,47202.0,1.28988837]
[1641113882858,0.14033567,47206.0,47202.0,1.28988837]
[1641113883258,0.14033567,47206.0,47203.0,0.00805144]
[1641113883462,0.32033567,47206.0,47203.0,0.00805144]
[1641113884160,0.32033567,47206.0,47204.0,0.23735998]
[1641113884760,0.32033567,47206.0,47203.0,0.00805144]
[1641113884961,0.14033567,47206.0,47202.0,1.28988837]
[1641113885361,0.14033567,47206.0,47203.0,0.0080514]
[1641113885561,0.31933567,47206.0,47204.0,0.23735998]
[1641113886065,0.31933567,47206.0,47202.0,1.28988837]
[1641113886464,0.31933567,47206.0,47203.0,0.0080514]
[1641113886865,0.14033567,47206.0,47203.0,0.0080514]
[1641113887464,0.152,47206.0,47204.0,0.23735998]
[1641113887765,0.152,47206.0,47205.0,0.18]
[1641113887967,0.152,47206.0,47203.0,1.29793977]
[1641113888164,0.152,47206.0,47203.0,1.28988837]
[1641113888669,0.152,47206.0,47205.0,0.23735998]
[1641113888864,0.50144201,47210.0,47205.0,0.23735998]
[1641113889466,0.69144201,47210.0,47205.0,0.23735998]
[1641113889666,0.69144201,47210.0,47204.0,1.28988837]
[1641113890771,0.50144201,47210.0,47204.0,1.28988837]
[1641113891169,0.50144201,47210.0,47204.0,1.52724835]
[1641113891170,0.14033567,47210.0,47204.0,1.52724835]
[1641113891567,0.33033567,47210.0,47204.0,1.52724835]
[1641113891966,0.33033567,47210.0,47204.0,1.28988837]
[1641113892168,0.33033567,47210.0,47205.0,0.18805093]
[1641113892368,0.19,47210.0,47205.0,0.00805093]
[1641113892668,0.19,47210.0,47205.0,1.28988837]
[1641113892868,0.36110634,47211.0,47205.0,1.28988837]
[1641113893469,0.54710634,47211.0,47205.0,1.28988837]
[1641113893673,0.36110634,47210.0,47204.0,1.28988837]
[1641113894474,0.50144201,47210.0,47204.0,1.28988837]
[1641113894673,0.36110634,47209.0,47203.0,1.28988837]
[1641113895276,0.54110634,47209.0,47203.0,1.28988837]
[1641113895475,0.36110634,47207.0,47201.0,1.52724835]
[1641113896682,0.18,47205.0,47201.0,1.15627282]
[1641113896882,0.18,47202.0,47200.0,1.29660849]
[1641113897083,0.24723,47202.0,47200.0,1.15627282]
[1641113897485,0.43123,47202.0,47197.0,1.41030146]
[1641113897684,0.43123,47202.0,47192.0,1.41030146]
[1641113897886,0.79233634,47202.0,47192.0,1.41030146]
[1641113898483,0.14033567,47200.0,47193.0,0.00805359]
[1641113898888,0.50144201,47200.0,47193.0,0.00805359]
[1641113899383,0.50144201,47200.0,47192.0,0.00805359]
[1641113899583,0.68944201,47200.0,47192.0,0.00805359]
[1641113899783,0.68944201,47200.0,47194.0,0.00805359]
[1641113899982,0.68944201,47200.0,47193.0,0.00805359]
[1641113900183,0.68944201,47200.0,47190.0,1.75182465]
[1641113900586,0.68944201,47200.0,47194.0,0.00805343]
[1641113900887,0.50144201,47200.0,47191.0,0.00805343]
[1641113901584,0.68944201,47200.0,47191.0,0.00805343]
[1641113902885,0.50144201,47200.0,47191.0,0.00805343]
[1641113903085,0.14033567,47200.0,47191.0,1.41835489]
[1641113903386,0.14033567,47200.0,47194.0,1.2979442]
[1641113903589,0.32833567,47200.0,47194.0,1.2979442]
[1641113903988,0.32833567,47200.0,47195.0,0.00805343]
[1641113904386,0.32833567,47200.0,47194.0,1.2979442]
[1641113904586,0.36110634,47198.0,47197.0,1.2979442]
[1641113905599,0.55310634,47198.0,47197.0,1.2979442]
[1641113905799,0.192,47198.0,47197.0,1.2979442]
[1641113906400,0.192,47198.0,47194.0,1.41030146]
[1641113906605,0.74218812,47200.0,47192.0,0.18]
[1641113906606,0.36110634,47200.0,47195.0,1.55063713]
[1641113906801,0.36110634,47200.0,47198.0,0.18]
[1641113907201,0.36110634,47200.0,47199.0,0.02118309]
[1641113907403,0.36110634,47202.0,47199.0,0.00805263]
[1641113907601,0.36110634,47202.0,47201.0,0.20118151]
[1641113908202,0.36110634,47202.0,47201.0,0.28264787]
[1641113908603,0.36110634,47202.0,47201.0,0.42298354]
[1641113908802,0.36110634,47207.0,47201.0,0.42298354]
[1641113909002,0.36110634,47207.0,47204.0,0.18]
[1641113909503,0.36110634,47207.0,47204.0,0.375]
[1641113909703,0.36110634,47208.0,47204.0,0.375]
[1641113910504,0.36110634,47208.0,47207.0,1.29544474]
[1641113911606,0.36110634,47208.0,47207.0,1.49244474]
[1641113912508,0.36110634,47208.0,47207.0,1.80314242]
[1641113912910,0.36110634,47208.0,47207.0,1.60614242]
[1641113913508,0.36110634,47208.0,47207.0,1.80114242]
[1641113913910,0.36110634,47208.0,47207.0,0.195]
[1641113914517,0.36110634,47208.0,47207.0,0.50569768]
[1641113915009,0.36110634,47208.0,47207.0,0.31069768]
[1641113915708,0.36110634,47208.0,47207.0,0.50569768]
[1641113916508,0.36110634,47208.0,47207.0,0.195]
[1641113916912,0.36110634,47208.0,47207.0,0.31069768]
[1641113917611,0.36110634,47208.0,47207.0,0.50469768]
[1641113917811,0.36110634,47208.0,47207.0,1.48944474]
[1641113918313,0.60185245,47210.0,47207.0,1.48944474]
[1641113918514,0.60185245,47209.0,47207.0,0.68469768]
[1641113919017,1.32359987,47216.0,47209.0,1.111]
[1641113919214,1.32359987,47216.0,47215.0,0.18]
[1641113919416,1.32359987,47216.0,47215.0,0.25430015]
[1641113919613,1.32359987,47219.0,47215.0,0.25430015]
[1641113919813,1.32359987,47219.0,47217.0,0.02117542]
[1641113920415,0.09026535,47224.0,47218.0,0.31069768]
[1641113921418,0.09026535,47224.0,47217.0,0.02117542]
[1641113921617,0.09026535,47224.0,47218.0,0.19]
[1641113922021,0.09026535,47224.0,47218.0,0.50069768]
[1641113922818,0.09026535,47224.0,47218.0,0.31069768]
[1641113923018,0.09026535,47224.0,47219.0,0.31069768]
[1641113923524,0.18,47223.0,47219.0,0.48969768]
[1641113923719,1.58837987,47223.0,47222.0,0.35358744]
[1641113924318,0.26478,47223.0,47222.0,0.35358744]
[1641113924523,0.35504535,47223.0,47222.0,0.35358744]
[1641113925321,0.35504535,47223.0,47221.0,0.35358744]
[1641113925519,0.53304535,47223.0,47222.0,0.181]
[1641113926021,0.44278,47223.0,47222.0,0.181]
[1641113926822,0.44278,47223.0,47222.0,0.35358744]
[1641113926823,0.26478,47223.0,47222.0,0.35358744]
[1641113927029,0.18,47223.0,47222.0,0.35358744]
[1641113927623,0.355,47223.0,47222.0,0.179]
[1641113928531,0.355,47223.0,47222.0,0.53258744]
[1641113928825,0.18,47223.0,47222.0,0.35358744]
[1641113929324,0.21506135,47225.0,47222.0,0.35358744]
[1641113929534,0.175,47223.0,47222.0,0.53258744]
[1641113929726,0.175,47223.0,47222.0,0.39912972]
[1641113930934,0.14033567,47225.0,47222.0,0.22012972]
[1641113931528,0.30233567,47225.0,47222.0,0.38712972]
[1641113933129,0.14033567,47225.0,47222.0,0.22012972]
[1641113933628,0.30133567,47225.0,47222.0,0.38812972]
[1641113935029,0.14033567,47225.0,47222.0,0.22012972]
[1641113935630,0.30333567,47225.0,47222.0,0.167]
[1641113936332,0.163,47225.0,47222.0,0.81613609]
[1641113936933,1.44302077,47227.0,47222.0,0.64913609]
[1641113937138,0.14033567,47228.0,47223.0,1.26389172]
[1641113937439,0.14033567,47228.0,47224.0,0.59060609]
[1641113938533,0.14033567,47228.0,47223.0,0.185]
[1641113938534,0.74116937,47228.0,47223.0,0.185]
[1641113938939,0.74116937,47228.0,47222.0,0.05853]
[1641113939333,0.14033567,47228.0,47222.0,0.05853]
[1641113939540,0.14033567,47228.0,47223.0,0.18]
[1641113939733,0.14033567,47228.0,47222.0,0.24453]
[1641113940143,0.5008321,47228.0,47222.0,0.24453]
[1641113941534,0.5008321,47228.0,47222.0,0.05853]
[1641113941834,0.5008321,47228.0,47222.0,0.187]
[1641113942534,0.36049643,47227.0,47222.0,0.187]
[1641113942933,0.36049643,47227.0,47220.0,0.352899]
[1641113943133,0.14033567,47228.0,47219.0,0.61178044]
[1641113943134,0.5008321,47228.0,47221.0,0.352899]
[1641113943334,0.36049643,47228.0,47221.0,0.352899]
[1641113943634,0.36049643,47228.0,47221.0,0.540899]
[1641113944634,0.36049643,47228.0,47221.0,0.720899]
[1641113945034,0.36049643,47228.0,47221.0,0.532899]
[1641113945236,0.36049643,47228.0,47224.0,0.14033567]
[1641113946536,0.36049643,47229.0,47224.0,0.14033567]
[1641113946737,0.36049643,47229.0,47224.0,0.16150797]
[1641113947538,0.36049643,47231.0,47224.0,0.51440697]
[1641113947839,0.36049643,47231.0,47224.0,0.68623467]
[1641113948038,0.54049643,47231.0,47224.0,0.68623467]
[1641113948839,0.18,47228.0,47224.0,0.68623467]
[1641113949041,0.24187,47228.0,47224.0,0.49323467]
[1641113949239,0.24187,47228.0,47223.0,0.352899]
[1641113949640,0.24187,47228.0,47224.0,0.179]
[1641113950240,0.36049643,47227.0,47224.0,0.179]
[1641113951040,0.36049643,47227.0,47220.0,0.352899]
[1641113951642,0.36049643,47227.0,47220.0,0.535899]
[1641113952042,0.36049643,47226.0,47220.0,0.535899]
[1641113953045,0.36049643,47226.0,47220.0,0.352899]
[1641113953245,0.14033567,47225.0,47219.0,0.352899]
[1641113953443,0.14033567,47225.0,47219.0,0.3740735]
[1641113953659,0.14033567,47225.0,47220.0,0.191]
[1641113954245,0.14033567,47225.0,47221.0,0.352899]
[1641113954946,0.14033567,47225.0,47220.0,0.352899]
[1641113955647,0.14033567,47225.0,47220.0,0.545899]
[1641113955844,0.14033567,47225.0,47221.0,0.352899]
[1641113957747,0.14033567,47225.0,47221.0,0.545899]
[1641113957948,0.14033567,47225.0,47221.0,0.193]
[1641113958250,0.6008337,47222.0,47221.0,1.90955091]
[1641113959048,0.6008337,47222.0,47221.0,1.71655091]
[1641113959648,0.09025663,47224.0,47221.0,1.91055091]
[1641113959848,0.09025663,47224.0,47221.0,0.194]
[1641113960548,0.09025663,47224.0,47222.0,0.42110617]
[1641113961751,0.09025663,47224.0,47222.0,0.61210617]
[1641113962751,0.09025663,47224.0,47223.0,0.42110617]
[1641113963656,0.09025663,47224.0,47223.0,0.61310617]
[1641113964753,0.09025663,47224.0,47223.0,0.79310617]
[1641113965154,0.09025663,47224.0,47223.0,0.60110617]
[1641113965353,0.09025663,47224.0,47223.0,0.42110617]
[1641113965554,0.84234647,47226.0,47223.0,0.42110617]
[1641113965753,0.84234647,47226.0,47223.0,0.61410617]
[1641113965754,0.60167605,47225.0,47223.0,0.61410617]
[1641113966154,0.90196647,47226.0,47223.0,0.61410617]
[1641113966356,0.05962,47226.0,47224.0,0.42110617]
[1641113967758,0.09025537,47225.0,47224.0,0.61210617]
[1641113969173,0.09025537,47225.0,47224.0,0.42110617]
[1641113969774,0.09025537,47225.0,47224.0,0.61110617]
[1641113969975,0.18,47228.0,47224.0,0.19]
[1641113970377,1.49333495,47230.0,47224.0,0.19]
[1641113970575,0.18,47227.0,47224.0,0.19]
[1641113970777,0.24196044,47226.0,47225.0,0.42110617]
[1641113970977,0.24196044,47226.0,47225.0,1.24965271]
[1641113971378,0.38229611,47226.0,47225.0,1.24965271]
[1641113971778,0.56629611,47226.0,47225.0,1.40265271]
[1641113971979,0.56629611,47226.0,47225.0,0.98154654]
[1641113972178,0.65708133,47226.0,47225.0,0.50839087]
[1641113972977,0.65708133,47226.0,47225.0,0.35539087]
[1641113973182,0.47308133,47226.0,47225.0,0.35539087]
[1641113973379,0.47308133,47226.0,47224.0,0.35539087]
[1641113973580,0.00052985,47225.0,47224.0,0.35539087]
[1641113974982,0.09025537,47225.0,47224.0,0.35539087]
[1641113975688,0.27325537,47225.0,47224.0,0.45039087]
[1641113976085,0.27378522,47225.0,47224.0,0.095]
[1641113976486,0.27325537,47225.0,47224.0,0.095]
[1641113977087,0.09025537,47225.0,47222.0,0.82854654]
[1641113977688,0.27725537,47225.0,47222.0,0.95654654]
[1641113978796,0.09025537,47224.0,47223.0,1.2371292]
[1641113979489,1.46418702,47226.0,47223.0,1.2371292]
[1641113979688,1.46418702,47226.0,47223.0,1.4281292]
[1641113980089,0.09025537,47225.0,47223.0,1.01954654]
[1641113980489,0.09025537,47225.0,47224.0,0.40858266]
[1641113981791,0.09025537,47225.0,47224.0,0.59558266]
[1641113982090,0.09025537,47225.0,47224.0,0.187]
[1641113982591,0.09025537,47225.0,47224.0,0.59558266]
[1641113983092,0.09025537,47225.0,47224.0,0.40858266]
[1641113983794,0.09025537,47225.0,47224.0,0.59558266]
[1641113983997,0.09025537,47225.0,47224.0,1.01554654]
[1641113984495,0.09025537,47225.0,47224.0,1.4241292]
[1641113985096,0.09025537,47225.0,47224.0,1.2371292]
[1641113985696,0.09025537,47225.0,47224.0,1.4271292]
[1641113986196,0.09025537,47225.0,47224.0,1.01854654]
[1641113986898,0.09025537,47225.0,47224.0,1.4271292]
[1641113987100,0.09025537,47225.0,47224.0,1.2371292]
[1641113987701,0.09025537,47225.0,47224.0,1.01954654]
[1641113988300,0.09025537,47225.0,47224.0,1.4281292]
[1641113989104,0.09025537,47225.0,47224.0,1.2371292]
[1641113989810,0.09025537,47225.0,47224.0,1.4271292]
[1641113990007,0.09025537,47225.0,47224.0,1.01854654]
[1641113990910,0.09025537,47225.0,47224.0,1.19061868]
[1641113991313,1.41410672,47225.0,47224.0,1.19061868]
[1641113991717,1.41410672,47225.0,47224.0,1.00061868]
[1641113991917,1.58410672,47225.0,47224.0,1.17561868]
[1641113993112,1.41410672,47225.0,47224.0,1.00061868]
[1641113993813,1.58210672,47225.0,47224.0,1.17361868]
[1641113994014,1.58210672,47225.0,47224.0,0.76503602]
[1641113994714,1.58210672,47225.0,47224.0,1.17361868]
[1641113995126,1.41410672,47225.0,47224.0,1.00061868]
[1641113995927,1.58310672,47225.0,47224.0,0.76603602]
[1641113996526,1.58310672,47225.0,47224.0,1.17461868]
[1641113997331,1.41410672,47225.0,47224.0,1.00061868]
[1641113998029,1.58510672,47225.0,47224.0,1.17561868]
[1641113998431,1.58510672,47225.0,47224.0,0.58358266]
[1641113998736,0.26125537,47225.0,47224.0,0.175]
[1641113999232,0.09025537,47225.0,47223.0,0.82854654]
[1641113999839,0.25925537,47225.0,47223.0,1.00254654]
[1641114000237,1.58310672,47225.0,47224.0,1.00203775]
[1641114000834,1.58310672,47225.0,47224.0,0.59345509]
[1641114001034,0.25925537,47225.0,47223.0,0.76745509]
[1641114001234,0.09025537,47225.0,47223.0,0.59345509]
[1641114001536,1.46418702,47226.0,47224.0,1.01224475]
[1641114001834,0.167,47225.0,47224.0,1.01224475]
[1641114002136,0.167,47225.0,47224.0,0.59345509]
[1641114003236,1.46418702,47226.0,47224.0,1.02427797]
[1641114003736,1.46418702,47226.0,47224.0,0.59345509]
[1641114003936,0.31033567,47226.0,47224.0,0.76045509]
[1641114005036,0.31033567,47226.0,47225.0,0.43066548]
[1641114005236,0.14033567,47226.0,47225.0,1.02412057]
[1641114005640,0.14033567,47226.0,47225.0,0.59345509]
[1641114005837,0.32733567,47226.0,47225.0,0.75945509]
[1641114007248,0.32033567,47226.0,47225.0,0.59345509]
[1641114007849,0.49833567,47226.0,47225.0,0.64845509]
[1641114008344,1.82218702,47226.0,47225.0,0.055]
[1641114008845,0.49833567,47226.0,47225.0,0.055]
[1641114009246,0.49833567,47226.0,47223.0,0.59345509]
[1641114009247,0.32033567,47226.0,47223.0,0.59345509]
[1641114009446,0.14033567,47226.0,47223.0,0.59345509]
[1641114009846,0.28433567,47226.0,47223.0,0.74445509]
[1641114011055,1.60805957,47226.0,47225.0,0.18]
[1641114011259,1.46405957,47226.0,47225.0,0.24909]
[1641114011448,1.46405957,47226.0,47225.0,0.06909]
[1641114011648,1.46405957,47226.0,47225.0,0.24909]
[1641114011849,1.46405957,47226.0,47225.0,0.44409]
[1641114012149,0.14033567,47226.0,47225.0,0.44409]
[1641114012449,1.3237239,47230.0,47225.0,0.44409]
[1641114012648,1.3237239,47230.0,47228.0,0.20117055]
[1641114013251,1.3237239,47233.0,47228.0,0.20117055]
[1641114013449,1.3237239,47233.0,47232.0,0.18]
[1641114013748,1.3237239,47233.0,47228.0,0.16150622]
[1641114013949,1.3237239,47233.0,47232.0,0.195]
[1641114014150,1.3237239,47235.0,47232.0,0.195]
[1641114014749,1.3237239,47235.0,47233.0,1.02141707]
[1641114014951,0.18,47234.0,47233.0,1.02141707]
[1641114015151,0.29015639,47234.0,47233.0,1.02141707]
[1641114015551,0.29015639,47234.0,47226.0,0.59075159]
[1641114015752,0.14033567,47227.0,47226.0,0.59075159]
[1641114016653,0.14033567,47227.0,47225.0,0.59075159]
[1641114017852,0.14033567,47227.0,47225.0,0.77875159]
[1641114018052,0.14033567,47227.0,47225.0,0.54243493]
[1641114018755,0.50094369,47227.0,47225.0,0.188]
[1641114018955,0.68094369,47227.0,47225.0,0.188]
[1641114019154,0.68094369,47227.0,47224.0,0.35443493]
[1641114019558,0.32033567,47227.0,47224.0,0.35443493]
[1641114019754,0.32033567,47227.0,47223.0,0.59075159]
[1641114019954,0.74134904,47227.0,47224.0,0.146]
[1641114021259,0.60101337,47225.0,47221.0,0.35443493]
[1641114021456,0.60101337,47225.0,47222.0,0.18]
[1641114022059,0.36063373,47226.0,47223.0,0.35443493]
[1641114023958,0.36063373,47226.0,47223.0,0.54143493]
[1641114024159,0.36063373,47226.0,47224.0,0.35443493]
[1641114025360,0.36063373,47226.0,47223.0,0.35443493]
[1641114025562,0.44285373,47226.0,47223.0,0.35443493]
[1641114025763,0.44285373,47226.0,47220.0,0.82724368]
[1641114025764,0.08222,47226.0,47220.0,0.35443493]
[1641114025963,0.08222,47226.0,47223.0,0.179]
[1641114026761,0.44285373,47226.0,47223.0,0.179]
[1641114027360,0.44285373,47226.0,47220.0,0.35443493]
[1641114027962,0.44285373,47226.0,47220.0,0.53243493]
[1641114028983,0.44285373,47226.0,47222.0,0.18]
[1641114029986,0.08222,47226.0,47222.0,0.179]
[1641114030186,0.5009694,47227.0,47222.0,0.359]
[1641114031088,0.5009694,47227.0,47222.0,0.179]
[1641114031288,0.5009694,47227.0,47221.0,0.35443493]
[1641114031993,0.5009694,47227.0,47221.0,0.52943493]
[1641114032797,0.40596138,47226.0,47221.0,0.52943493]
[1641114033091,0.47962138,47226.0,47221.0,0.52943493]
[1641114033296,0.18,47222.0,47221.0,0.10589155]
[1641114033692,0.18052985,47222.0,47221.0,0.10589155]
[1641114033893,0.32086552,47222.0,47221.0,0.10589155]
[1641114034191,0.50986552,47222.0,47221.0,0.10589155]
[1641114035191,0.32086552,47222.0,47217.0,0.59075159]
[1641114035394,0.00052985,47218.0,47209.0,0.59075159]
[1641114035591,0.009794,47217.0,47209.0,0.59075159]
[1641114035793,0.18,47215.0,47209.0,0.59075159]
[1641114036006,0.14033567,47212.0,47209.0,0.59075159]
[1641114036595,0.32033567,47212.0,47209.0,0.59075159]
[1641114036794,0.14033567,47212.0,47209.0,1.02162064]
[1641114037799,0.14033567,47212.0,47204.0,2.42155159]
[1641114037994,0.32933567,47212.0,47209.0,0.128]
[1641114039395,0.32933567,47212.0,47203.0,0.59075159]
[1641114039595,0.14033567,47212.0,47203.0,0.59075159]
[1641114039795,0.14033567,47212.0,47203.0,0.77075159]
[1641114039995,0.32933567,47212.0,47203.0,0.89875159]
[1641114040596,0.32933567,47212.0,47204.0,0.59075159]
[1641114041203,0.32933567,47212.0,47203.0,0.71875159]
[1641114041496,0.14033567,47212.0,47203.0,0.59075159]
[1641114041997,0.32933567,47212.0,47203.0,0.71775159]
[1641114042397,0.32933567,47212.0,47204.0,1.02228101]
[1641114042997,0.32933567,47212.0,47204.0,0.59075159]
[1641114043198,0.32933567,47212.0,47203.0,0.71775159]
[1641114043398,0.14033567,47212.0,47203.0,0.59075159]
[1641114043900,0.39137312,47211.0,47203.0,0.59075159]
[1641114044099,0.39137312,47211.0,47203.0,0.71875159]
[1641114044397,0.39137312,47211.0,47205.0,0.35823646]
[1641114045798,0.39439274,47208.0,47205.0,0.35823646]
[1641114045998,0.189,47211.0,47205.0,0.50923646]
[1641114046697,0.189,47211.0,47208.0,0.20117947]
[1641114047298,0.36057814,47219.0,47209.0,0.06418448]
[1641114047698,0.39690158,47217.0,47204.0,0.37941761]
[1641114048101,0.14033567,47215.0,47206.0,0.35823646]
[1641114049104,0.14033567,47215.0,47205.0,0.59075159]
[1641114049302,0.14033567,47215.0,47204.0,0.35823646]
[1641114050101,0.33333567,47215.0,47204.0,0.35823646]
[1641114051203,0.33333567,47215.0,47203.0,0.53823646]
[1641114051402,0.14033567,47215.0,47203.0,0.53823646]
[1641114052002,0.33433567,47215.0,47203.0,0.53823646]
[1641114053404,0.14033567,47215.0,47203.0,0.53823646]
[1641114054004,0.33333567,47215.0,47203.0,0.53823646]
[1641114054407,0.33333567,47215.0,47202.0,0.16151801]
[1641114054408,0.33333567,47215.0,47202.0,0.51975447]
[1641114055006,0.42362401,47212.0,47202.0,0.51975447]
[1641114056306,0.60662401,47212.0,47202.0,0.67375447]
[1641114056707,0.60662401,47212.0,47202.0,0.31551801]
[1641114057110,0.60662401,47212.0,47202.0,0.29433567]
[1641114057410,0.60662401,47212.0,47202.0,0.14033567]
[1641114057610,0.42362401,47212.0,47202.0,0.14033567]
[1641114058012,0.42362401,47212.0,47202.0,0.28533567]
[1641114058211,0.60762401,47212.0,47202.0,0.28533567]
[1641114058611,0.42364121,47210.0,47202.0,0.28533567]
[1641114059514,0.009794,47209.0,47202.0,0.14033567]
[1641114060021,0.186794,47209.0,47202.0,0.31833567]
[1641114060513,0.54737214,47209.0,47207.0,0.35823646]
[1641114061315,0.36057814,47208.0,47207.0,0.35823646]
[1641114061914,0.37037214,47209.0,47207.0,0.35823646]
[1641114062117,0.178,47208.0,47207.0,0.53823646]
[1641114062716,0.178,47208.0,47207.0,0.18]
[1641114064019,0.355,47208.0,47207.0,0.359]
[1641114064221,0.44416,47208.0,47207.0,0.359]
[1641114064724,0.80473814,47208.0,47207.0,0.359]
[1641114065620,0.80473814,47208.0,47204.0,0.59075159]
[1641114065621,0.08916,47208.0,47204.0,0.59075159]
[1641114066022,0.27616,47208.0,47204.0,0.76075159]
[1641114066221,0.14033567,47206.0,47204.0,0.76075159]
[1641114067525,0.14033567,47206.0,47204.0,0.59075159]
[1641114068122,0.32833567,47206.0,47204.0,0.70475159]
[1641114069424,0.14033567,47206.0,47204.0,0.59075159]
[1641114069825,0.42368869,47205.0,47204.0,0.59075159]
[1641114070234,0.34143602,47204.0,47197.0,1.30095902]
[1641114070433,0.34143602,47204.0,47200.0,0.83938523]
[1641114070434,0.189794,47204.0,47200.0,0.83938523]
[1641114070634,0.189794,47204.0,47202.0,0.59956088]
[1641114071233,0.189794,47204.0,47199.0,0.41169502]
[1641114071634,0.02119059,47201.0,47194.0,0.41169502]
[1641114072033,0.20819059,47201.0,47194.0,0.53569502]
[1641114072235,0.14033567,47199.0,47194.0,0.53569502]
[1641114072641,0.50119414,47199.0,47195.0,0.41169502]
[1641114073437,0.14033567,47199.0,47195.0,0.41169502]
[1641114074138,0.18052985,47196.0,47195.0,0.57169502]
[1641114074341,0.26774448,47196.0,47193.0,0.41169502]
[1641114074538,0.18052985,47194.0,47193.0,0.41169502]
[1641114075037,0.18052985,47194.0,47190.0,1.30095902]
[1641114075241,0.18,47191.0,47185.0,1.30095902]
[1641114075640,0.18,47188.0,47185.0,1.30095902]
[1641114075838,0.60384528,47188.0,47185.0,1.30095902]
[1641114076339,0.14033567,47186.0,47185.0,1.30095902]
[1641114076540,0.22046567,47186.0,47180.0,0.41622841]
[1641114078139,0.40446567,47186.0,47180.0,0.41622841]
[1641114078739,0.40446567,47186.0,47183.0,0.84222705]
[1641114079442,0.22046567,47186.0,47183.0,0.84222705]
[1641114079641,0.22046567,47186.0,47180.0,0.41622841]
[1641114079841,0.84176742,47184.0,47183.0,1.30095902]
[1641114082241,1.02776742,47184.0,47183.0,1.30095902]
[1641114082643,0.186,47184.0,47183.0,1.30095902]
[1641114082842,0.186,47184.0,47182.0,1.30095902]
[1641114083342,0.93293535,47183.0,47182.0,1.30095902]
[1641114084143,1.12093535,47183.0,47182.0,1.30095902]
[1641114084544,1.03060276,47183.0,47182.0,1.30095902]
[1641114085444,0.84260276,47183.0,47182.0,1.30095902]
[1641114085647,0.93293535,47183.0,47182.0,1.30095902]
[1641114086044,0.09033259,47183.0,47182.0,1.30095902]
[1641114086245,0.27733259,47183.0,47182.0,1.30095902]
[1641114087546,0.09033259,47183.0,47182.0,1.30095902]
[1641114088150,0.27733259,47183.0,47182.0,1.30095902]
[1641114088548,0.84260276,47184.0,47182.0,1.48095902]
[1641114088748,0.84260276,47184.0,47182.0,1.56282902]
[1641114089449,0.84260276,47184.0,47182.0,0.26187]
[1641114089649,1.3237239,47193.0,47183.0,2.52428554]
[1641114089851,0.6021864,47186.0,47183.0,2.52428554]
[1641114090050,0.6021864,47186.0,47185.0,0.18]
[1641114090250,0.6021864,47186.0,47185.0,0.32033567]
[1641114090752,0.36127109,47189.0,47185.0,0.32033567]
[1641114091049,0.36127109,47189.0,47188.0,0.18]
[1641114091550,0.36127109,47190.0,47188.0,1.62326222]
[1641114092150,0.36127109,47190.0,47188.0,1.81526222]
[1641114092552,0.36127109,47190.0,47188.0,1.63526222]
[1641114093551,0.36127109,47189.0,47187.0,1.44326222]
[1641114094152,0.36127109,47189.0,47187.0,1.63426222]
[1641114095153,0.6021864,47190.0,47187.0,1.63426222]
[1641114095355,1.3812039,47195.0,47188.0,1.32398653]
[1641114096255,1.5692039,47195.0,47188.0,1.45598653]
[1641114097356,1.5692039,47195.0,47188.0,1.32398653]
[1641114097556,1.5692039,47195.0,47185.0,0.14033567]
[1641114097557,1.3812039,47195.0,47187.0,1.32398653]
[1641114098057,0.84303198,47189.0,47188.0,1.32398653]
[1641114099662,0.06356794,47194.0,47188.0,1.32398653]
[1641114099959,0.06356794,47194.0,47186.0,1.32398653]
[1641114099960,1.3237239,47193.0,47186.0,1.32398653]
[1641114100159,1.3237239,47193.0,47188.0,0.131]
[1641114100361,0.14033567,47189.0,47188.0,0.131]
[1641114101461,0.14033567,47189.0,47178.0,0.54014375]
[1641114102063,0.14033567,47189.0,47180.0,0.00832852]
[1641114102264,0.31433567,47189.0,47180.0,0.00832852]
[1641114103464,0.14033567,47189.0,47180.0,0.00832852]
[1641114103866,0.14033567,47189.0,47179.0,0.14033567]
[1641114104265,0.31233567,47189.0,47180.0,0.178]
[1641114104667,0.08772581,47188.0,47180.0,0.178]
[1641114105069,0.3602436,47183.0,47181.0,1.9160772]
[1641114106071,0.3602436,47183.0,47182.0,1.44326222]
[1641114106773,0.3602436,47184.0,47182.0,1.9160772]
[1641114108176,0.3602436,47184.0,47182.0,1.63526222]
[1641114109178,0.3602436,47185.0,47183.0,1.9160772]
[1641114110279,0.3602436,47185.0,47183.0,2.1070772]